fUSD/lending_fUSD_20260308
["ID","MTS","AMOUNT","RATE_DAILY","PERIOD"]
[407984036,1772968241339,-2336.46733329,0.00016864,2]
[407984037,1772968241349,-5175.78473123,0.00016885,2]
[407984038,1772968241358,-3415.54774328,0.00016941,2]
[407984039,1772968241367,-155.59,0.00016971,2]
[407984040,1772968241377,-151.0,0.00016997,2]
[407984041,1772968241386,-265617.74661495,0.00017,2]
[407984042,1772968241396,-152.13919626,0.00017,2]
[407984043,1772968241406,-300.0,0.00017,2]
[407984044,1772968241416,-502.0,0.00017,2]
[407984045,1772968241427,-23364.92296281,0.000171,2]
[407984046,1772968241438,-53547.69933188,0.0001711,2]
[407984047,1772968241447,-303.47017161,0.00017237,2]
[407984048,1772968241459,-155.59,0.00017343,2]
[407984049,1772968241469,-5175.78473123,0.00017488,2]
[407984050,1772968241479,-3415.54774328,0.00017532,2]
[407984051,1772968241490,-3084.5092692,0.00017617,2]
[407984052,1772968241499,-403.0,0.000177,5]
[407984053,1772968241508,-155.59,0.00017714,2]
[407984054,1772968241517,-1759.5360001,0.00017791,2]
[407984055,1772968241526,-3544.2603773,0.00017791,2]
[407984056,1772968241535,-503.0,0.00017863,2]
[407984057,1772968241544,-3181.97034185,0.0001789,2]
[407984058,1772968241554,-5164.0,0.000179,2]
[407984059,1772968241563,-161.541955,0.0001796,2]
[407984060,1772968241573,-823.0,0.00017983,2]
[407984061,1772968241583,-1860.05864562,0.00018,5]
[407984062,1772968241593,-3067.55173912,0.00018,7]
[407984063,1772968241602,-65594.12178865,0.00018,2]
[407984064,1772968241611,-308.71489889,0.00018,2]
[407984065,1772968241620,-1002.71298774,0.00018,2]
[407984066,1772968241629,-301.40781056,0.00018,5]
[407984067,1772968241639,-736.0,0.00018029,2]
[407984068,1772968241648,-155.59,0.00018086,2]
[407984069,1772968241657,-5175.78473123,0.00018091,2]
[407984070,1772968241672,-3415.54774328,0.00018124,2]
[407984071,1772968241681,-174.36681548,0.00018158,2]
[407984072,1772968241690,-3292.0,0.00018184,2]
[407984073,1772968241700,-1541.03721467,0.000182,2]
[407984074,1772968241710,-3084.5092692,0.00018378,2]
[407984075,1772968241719,-446.0,0.00018457,2]
[407984076,1772968241728,-155.59,0.00018457,2]
[407984077,1772968241739,-152.809958,0.00018511,2]
[407984078,1772968241748,-1824.43,0.00018522,2]
[407984079,1772968241758,-446.0,0.00018603,2]
[407984080,1772968241767,-5175.78473123,0.00018694,2]
[407984081,1772968241776,-446.0,0.00018701,2]
[407984082,1772968241785,-3415.54774328,0.00018716,2]
[407984083,1772968241794,-2000.0,0.000188,2]
[407984084,1772968241803,-155.59,0.00018829,2]
[407984085,1772968241812,-172.82949155,0.00018833,2]
[407984086,1772968241821,-446.0,0.0001884,2]
[407984087,1772968241830,-500.0,0.00018843,2]
[407984088,1772968241839,-151.0,0.00018843,2]
[407984089,1772968241848,-174.61919141,0.00018843,2]
[407984090,1772968241858,-262.90206542,0.00018843,2]
[407984091,1772968241867,-693.3919763,0.00018843,2]
[407984092,1772968241876,-500.0,0.00018843,2]
[407984093,1772968241885,-500.0,0.00018843,2]
[407984094,1772968241894,-500.0,0.00018843,2]
[407984095,1772968241903,-500.0,0.00018843,2]
[407984096,1772968241912,-500.0,0.00018843,2]
[407984097,1772968241922,-500.0,0.00018843,2]
[407984098,1772968241931,-500.0,0.00018843,2]
[407984099,1772968241940,-200.0,0.00018843,2]
[407984100,1772968241949,-500.0,0.00018843,2]
[407984101,1772968241959,-500.0,0.00018843,2]
[407984102,1772968241967,-500.0,0.00018843,2]
[407984103,1772968241978,-500.0,0.00018843,2]
[407984104,1772968241989,-151.0,0.00018898,2]
[407984105,1772968241999,-719.04747942,0.00018898,2]
[407984106,1772968242011,-2000.0,0.000189,2]
[407984107,1772968242023,-151.0,0.00018953,2]
[407984108,1772968242034,-745.65223616,0.00018953,2]
[407984109,1772968242044,-447.0,0.00018957,2]
[407984110,1772968242054,-785.87433,0.00019,2]
[407984111,1772968242065,-2000.0,0.00019,2]
[407984112,1772968242076,-151.0,0.00019008,2]
[407984113,1772968242087,-773.2413689,0.00019008,2]
[407984114,1772968242097,-350.0,0.00019009,2]
[407984115,1772968242106,-446.0,0.0001906,2]
[407984116,1772968242117,-151.0,0.00019063,2]
[407984117,1772968242126,-801.85129955,0.00019063,2]
[407984118,1772968242136,-2000.0,0.000191,2]
[407984119,1772968242146,-151.0,0.00019118,2]
[407984120,1772968242156,-831.51979763,0.00019118,2]
[407984121,1772968242165,-1236.1007734,0.00019118,2]
[407984122,1772968242176,-3084.5092692,0.00019139,2]
[407984123,1772968242185,-151.0,0.00019173,2]
[407984124,1772968242194,-862.28603014,0.00019173,2]
[407984125,1772968242204,-451.85,0.00019178,30]
[407984126,1772968242214,-208.0,0.00019192,2]
[407984127,1772968242225,-2000.0,0.000192,2]
[407984128,1772968242235,-155.59,0.000192,2]
[407984129,1772968242246,-458.87,0.00019226,2]
[407984130,1772968242256,-151.0,0.00019228,2]
[407984131,1772968242267,-894.19061326,0.00019228,2]
[407984132,1772968242277,-350.0,0.00019275,2]
[407984133,1772968242286,-151.0,0.00019283,2]
[407984134,1772968242297,-927.27566595,0.00019283,2]
[407984135,1772968242308,-206.01679557,0.0001929,2]
[407984136,1772968242319,-5175.78473123,0.00019297,2]
[407984137,1772968242329,-2000.0,0.000193,2]
[407984138,1772968242341,-2000.0,0.000193,2]
[407984139,1772968242351,-3415.54774328,0.00019308,2]
[407984140,1772968242360,-261.77,0.00019319,2]
[407984141,1772968242369,-350.0,0.00019322,2]
[407984142,1772968242379,-151.0,0.00019338,2]
[407984143,1772968242388,-961.58486559,0.00019338,2]
[407984144,1772968242398,-350.0,0.00019357,2]
[407984145,1772968242408,-181.08010149,0.00019391,2]
[407984146,1772968242419,-272.62944185,0.00019391,2]
[407984147,1772968242428,-300.0,0.00019391,2]
[407984148,1772968242438,-151.0,0.00019393,2]
[407984149,1772968242447,-997.16350561,0.00019393,2]
[407984150,1772968242457,-2000.0,0.000194,2]
[407984151,1772968242466,-2000.0,0.000194,2]
[407984152,1772968242475,-1252.0,0.00019425,2]
[407984153,1772968242488,-151.0,0.00019448,2]
[407984154,1772968242498,-206.01679557,0.00019481,2]
[407984155,1772968242508,-162.97,0.000195,2]
[407984156,1772968242517,-2000.0,0.000195,2]
[407984157,1772968242527,-2000.0,0.000195,2]
[407984158,1772968242538,-151.0,0.00019503,2]
[407984159,1772968242549,-208.0,0.00019514,2]
[407984160,1772968242560,-151.0,0.00019558,2]
[407984161,1772968242570,-155.59,0.00019571,2]
[407984162,1772968242579,-2000.0,0.000196,2]
[407984163,1772968242590,-2000.0,0.000196,2]
[407984164,1772968242599,-208.0,0.00019613,2]
[407984165,1772968242609,-151.0,0.00019613,2]
[407984166,1772968242618,-151.0,0.00019668,2]
[407984167,1772968242627,-206.01679557,0.00019672,2]
[407984168,1772968242636,-2000.0,0.000197,2]
[407984169,1772968242645,-2000.0,0.000197,2]
[407984170,1772968242656,-1152.0,0.00019708,2]
[407984171,1772968242669,-585.74,0.00019711,2]
[407984172,1772968242677,-151.0,0.00019723,2]
[407984173,1772968242687,-2000.0,0.000198,2]
[407984174,1772968242696,-2000.0,0.000198,2]
[407984175,1772968242707,-929.0793,0.00019899,2]
[407984176,1772968242716,-1000.0,0.00019899,2]
[407984177,1772968242726,-2000.0,0.000199,2]
[407984178,1772968242736,-2000.0,0.000199,2]
[407984179,1772968242748,-174.36681548,0.000199,2]
[407984180,1772968242757,-10000.0,0.000199,2]
[407984181,1772968242770,-3415.54774328,0.000199,2]
[407984182,1772968242779,-5175.78473123,0.000199,2]
[407984183,1772968242788,-303.47017161,0.000199,2]
[407984184,1772968242798,-197.9698367,0.000199,2]
[407984185,1772968242808,-3084.5092692,0.000199,2]
[407984186,1772968242817,-6199.0,0.000199,2]
[407984187,1772968242826,-404.48818014,0.000199,2]
[407984188,1772968242835,-5064.8552731,0.0001991,2]
[407984189,1772968242844,-116472.069342,0.0001991,2]
[407984190,1772968242854,-187.78006525,0.00019939,2]
[407984191,1772968242863,-282.71673119,0.00019939,2]
[407984192,1772968242874,-155.59,0.00019943,2]
[407984193,1772968242884,-208.0,0.00019946,2]
[407984194,1772968242893,-6110.0,0.00019973,2]
[407984195,1772968242902,-293.77158202,0.00019973,2]
[407984196,1772968242912,-500.0,0.00019973,2]
[407984197,1772968242921,-500.0,0.00019973,2]
[407984198,1772968242931,-500.0,0.00019975,2]
[407984199,1772968242942,-500.0,0.00019975,2]
[407984200,1772968242951,-514.75306544,0.00019975,2]
[407984201,1772968242963,-453135.1661151,0.00019976,2]
[407984202,1772968242974,-551.23395292,0.0001998,2]
[407984203,1772968242983,-404.48818014,0.0001999,2]
[407984204,1772968242994,-151.0,0.00019996,2]
[407984205,1772968243004,-154.6401334,0.00019997,2]
[407984206,1772968243014,-164.431,0.00019998,2]
[407984207,1772968243073,-500.0,0.00019998,2]
[407984208,1772968243083,-310.89756555,0.00019999,2]
[407984209,1772968243092,-300.0,0.00019999,2]
[407984210,1772968243101,-300.0,0.00019999,2]
[407984211,1772968243110,-666.0,0.00019999,2]
[407984212,1772968243119,-2195.4764189,0.00019999,2]
[407984213,1772968243128,-253285.494397,0.00019999,2]
[407984214,1772968243137,-150.0,0.00019999,2]
[407984215,1772968243149,-215.40583698,0.00019999,2]
[407984216,1772968243159,-1779571.63986206,0.0002,2]
[407984219,1772968243311,-2427.57757464,0.0002,2]
[407984220,1772968243413,-1117.08,0.0002,2]
[407984221,1772968243436,-2062245.12412216,0.0002,2]
[407984222,1772968243446,-1269.16608837,0.0002,2]
[407984223,1772968243457,-10000.0,0.0002,2]
[407984224,1772968243467,-2367644.6437985,0.0002,2]
[407984225,1772968243480,-394.64960567,0.0002,2]
[407984227,1772968244186,-488.84171579,0.0002,2]
[407984228,1772968244197,-768.71294345,0.0002,2]
[407984229,1772968244315,-1010.60939998,0.0002,2]
[407984230,1772968244333,-12946.90407536,0.0002,2]
[407984231,1772968244345,-1027.23724345,0.0002,2]
[407984232,1772968244356,-338.145,0.0002,2]
[407984233,1772968246224,-8179.4622318,0.0002,2]
[407984234,1772968246280,-183621.32096531,0.0002,2]
[407984235,1772968246542,-378.97,0.0002,2]
[407984237,1772968336009,500.0,8e-05,2]
[407984238,1772968336368,820.88890927,8e-05,2]
[407984239,1772968340487,500.0,8e-05,2]
[407984240,1772968343059,500.0,8e-05,2]
[407984241,1772968344369,500.0,8e-05,2]
[407984242,1772968349185,500.0,8e-05,2]
[407984243,1772968372587,592.02,0.000115,2]
[407984244,1772968852864,-257.0,0.00013051,2]
[407984245,1772968852886,-5191.92,0.00013051,2]
[407984246,1772968852910,-979.27,0.00013226,2]
[407984247,1772968852934,-511.62329168,0.00013447,2]
[407984248,1772968852959,-300.0,0.00013463,2]
[407984249,1772968852982,-300.0,0.00013463,2]
[407984250,1772968853007,-1200.0,0.00013463,2]
[407984251,1772968853032,-174.36681551,0.00013464,2]
[407984252,1772968853059,-1085.81989281,0.00013464,2]
[407984254,1772969431333,-254.0,0.00012657,2]
[407984255,1772969431343,-89.22158602,0.00012657,2]
[407984256,1772969431387,-209.16295007,0.00012657,2]
[407984257,1772969431397,-200.0,0.00012669,2]
[407984258,1772969431406,-2517.33,0.00012674,2]
[407984259,1772969431415,-200.0,0.00012838,2]
[407984260,1772969431424,-636.16,0.00012841,2]
[407984261,1772969431434,-1500.0,0.00012941,2]
[407984262,1772969431443,-1852.42,0.00012994,2]
[407984263,1772969431452,-1200.0,0.00013125,2]
[407984264,1772969431462,-2000.0,0.00013126,2]
[407984265,1772969431471,-636.16,0.00013162,2]
[407984266,1772969431480,-300.0,0.00013399,2]
[407984267,1772969431490,-159.66676942,0.000134,2]
[407984268,1772969431499,-168.0,0.00013423,2]
[407984269,1772969431508,-296.0,0.0001345,2]
[407984270,1772969431517,-150.0,0.00013472,2]
[407984271,1772969431526,-3221.95367084,0.00013473,2]
[407984272,1772969431536,-11613.25087264,0.00013473,2]
[407984273,1772969431545,-202.31344774,0.00013473,2]
[407984275,1772969431555,-7996.01706376,0.00013473,2]
[407984276,1772969431564,-636.16,0.00013483,2]
[407984278,1772969431573,-7038.19,0.000135,2]
[407984280,1772969431582,-1786.559,0.00013518,2]
[407984282,1772969431591,-180.111,0.00013518,2]
[407984284,1772969431601,-6110.0,0.00013534,2]
[407984287,1772969431611,-497.005,0.00013534,2]
[407984289,1772969431620,-570.0,0.00013534,2]
[407984291,1772969431629,-720.72,0.00013554,2]
[407984293,1772969431639,-150.99,0.00013554,2]
[407984295,1772969431648,-9999.99,0.00013554,2]
[407984297,1772969431658,-151.0,0.00013556,2]
[407984299,1772969431667,-151.0,0.00013556,2]
[407984301,1772969431677,-151.0,0.00013556,2]
[407984303,1772969431686,-151.0,0.00013556,2]
[407984305,1772969431696,-151.0,0.00013556,2]
[407984307,1772969431704,-151.0,0.00013556,2]
[407984309,1772969431713,-151.0,0.00013556,2]
[407984311,1772969431722,-151.0,0.00013556,2]
[407984313,1772969431732,-151.0,0.00013556,2]
[407984315,1772969431741,-151.0,0.00013556,2]
[407984317,1772969431751,-151.0,0.00013556,2]
[407984319,1772969431760,-151.0,0.00013556,2]
[407984321,1772969431770,-151.0,0.00013556,2]
[407984323,1772969431779,-151.0,0.00013556,2]
[407984324,1772969431788,-151.0,0.00013556,2]
[407984325,1772969431797,-151.0,0.00013556,2]
[407984326,1772969431806,-151.0,0.00013556,2]
[407984327,1772969431815,-151.0,0.00013556,2]
[407984328,1772969431824,-151.0,0.00013556,2]
[407984329,1772969431833,-151.0,0.00013556,2]
[407984330,1772969431843,-151.0,0.00013556,2]
[407984331,1772969431852,-151.0,0.00013556,2]
[407984332,1772969431861,-151.0,0.00013556,2]
[407984333,1772969431871,-151.0,0.00013556,2]
[407984334,1772969431880,-151.0,0.00013556,2]
[407984335,1772969431889,-151.0,0.00013556,2]
[407984336,1772969431898,-151.0,0.00013556,2]
[407984337,1772969431907,-151.0,0.00013556,2]
[407984338,1772969431916,-151.0,0.00013556,2]
[407984339,1772969431926,-151.0,0.00013556,2]
[407984340,1772969431936,-151.0,0.00013556,2]
[407984341,1772969431945,-613.48,0.00013556,2]
[407984342,1772969431958,-151.0,0.00013561,2]
[407984343,1772969431967,-500.0,0.00013563,2]
[407984344,1772969431977,-206.35597305,0.00013563,2]
[407984345,1772969431986,-284.52046781,0.00013563,2]
[407984346,1772969431995,-500.0,0.00013563,2]
[407984347,1772969432004,-169.06691202,0.00013563,2]
[407984348,1772969432014,-500.0,0.00013563,2]
[407984349,1772969432023,-500.0,0.00013563,2]
[407984350,1772969432037,-500.0,0.00013563,2]
[407984351,1772969432047,-500.0,0.00013563,2]
[407984352,1772969432057,-500.0,0.00013563,2]
[407984353,1772969432066,-500.0,0.00013563,2]
[407984354,1772969432076,-500.0,0.00013563,2]
[407984355,1772969432085,-500.0,0.00013563,2]
[407984356,1772969432094,-500.0,0.00013563,2]
[407984357,1772969432104,-500.0,0.00013563,2]
[407984358,1772969432113,-500.0,0.00013563,2]
[407984359,1772969432122,-500.0,0.00013563,2]
[407984360,1772969432131,-500.0,0.00013563,2]
[407984361,1772969432140,-500.0,0.00013563,2]
[407984362,1772969432150,-500.0,0.00013563,2]
[407984363,1772969432159,-500.0,0.00013563,2]
[407984364,1772969432168,-500.0,0.00013563,2]
[407984365,1772969432177,-500.0,0.00013563,2]
[407984366,1772969432186,-500.0,0.00013563,2]
[407984367,1772969432195,-500.0,0.00013563,2]
[407984368,1772969432204,-500.0,0.00013563,2]
[407984369,1772969432214,-500.0,0.00013563,2]
[407984370,1772969432223,-500.0,0.00013563,2]
[407984371,1772969432451,-500.0,0.00013563,2]
[407984372,1772969432462,-500.0,0.00013563,2]
[407984373,1772969432471,-500.0,0.00013563,2]
[407984374,1772969432481,-500.0,0.00013563,2]
[407984375,1772969432490,-500.0,0.00013563,2]
[407984376,1772969432499,-500.0,0.00013563,2]
[407984377,1772969432508,-500.0,0.00013563,2]
[407984378,1772969432518,-500.0,0.00013563,2]
[407984379,1772969432527,-500.0,0.00013563,2]
[407984380,1772969432537,-500.0,0.00013563,2]
[407984381,1772969432547,-500.0,0.00013563,2]
[407984382,1772969432556,-500.0,0.00013563,2]
[407984383,1772969432565,-500.0,0.00013563,2]
[407984384,1772969432575,-500.0,0.00013563,2]
[407984385,1772969432584,-500.0,0.00013563,2]
[407984386,1772969432594,-500.0,0.00013563,2]
[407984387,1772969432603,-500.0,0.00013563,2]
[407984388,1772969432612,-500.0,0.00013563,2]
[407984389,1772969432622,-500.0,0.00013563,2]
[407984390,1772969432631,-500.0,0.00013563,2]
[407984391,1772969432640,-500.0,0.00013563,2]
[407984392,1772969432649,-500.0,0.00013563,2]
[407984393,1772969432662,-500.0,0.00013563,2]
[407984394,1772969432671,-500.0,0.00013563,2]
[407984395,1772969432681,-500.0,0.00013563,2]
[407984396,1772969432690,-500.0,0.00013563,2]
[407984397,1772969432700,-500.0,0.00013563,2]
[407984398,1772969432710,-500.0,0.00013563,2]
[407984399,1772969432719,-500.0,0.00013563,2]
[407984400,1772969432729,-500.0,0.00013563,2]
[407984401,1772969432739,-500.0,0.00013563,2]
[407984402,1772969432749,-500.0,0.00013563,2]
[407984403,1772969432759,-500.0,0.00013563,2]
[407984404,1772969432769,-500.0,0.00013563,2]
[407984405,1772969432779,-500.0,0.00013563,2]
[407984406,1772969432788,-500.0,0.00013563,2]
[407984407,1772969432797,-500.0,0.00013563,2]
[407984408,1772969432807,-431.41599953,0.00013563,2]
[407984409,1772969432816,-230.00786375,0.00013573,2]
[407984410,1772969432826,-500.41098414,0.00013573,2]
[407984411,1772969432836,-500.0,0.00013573,2]
[407984412,1772969432845,-197.9698367,0.00013598,2]
[407984413,1772969432854,-151.0,0.00013695,2]
[407984414,1772969432864,-500.0,0.00013698,2]
[407984415,1772969432873,-500.0,0.00013698,2]
[407984416,1772969432882,-500.0,0.00013698,2]
[407984417,1772969432892,-500.0,0.00013698,2]
[407984418,1772969432901,-500.0,0.00013698,2]
[407984419,1772969432910,-500.0,0.00013698,2]
[407984420,1772969432920,-500.0,0.00013698,2]
[407984421,1772969432929,-500.0,0.00013698,2]
[407984422,1772969432938,-500.0,0.00013698,2]
[407984423,1772969432948,-500.0,0.00013698,2]
[407984424,1772969432958,-500.0,0.00013698,2]
[407984425,1772969432967,-500.0,0.00013698,2]
[407984426,1772969432976,-500.0,0.00013698,2]
[407984427,1772969432985,-500.0,0.00013698,2]
[407984428,1772969432995,-500.0,0.00013698,2]
[407984429,1772969433009,-500.0,0.00013698,2]
[407984430,1772969433018,-500.0,0.00013698,2]
[407984431,1772969433027,-500.0,0.00013698,2]
[407984432,1772969433036,-500.0,0.00013698,2]
[407984433,1772969433046,-500.0,0.00013698,2]
[407984434,1772969433055,-500.0,0.00013698,2]
[407984435,1772969433064,-500.0,0.00013698,2]
[407984436,1772969433073,-500.0,0.00013698,2]
[407984437,1772969433085,-500.0,0.00013698,2]
[407984438,1772969433095,-500.0,0.00013698,2]
[407984439,1772969433106,-500.0,0.00013698,2]
[407984440,1772969433115,-500.0,0.00013698,2]
[407984441,1772969433124,-549.68387848,0.00013698,2]
[407984442,1772969433134,-137.47874144,0.00013698,2]
[407984443,1772969433148,-362.52125856,0.00013698,2]
[407984444,1772969433158,-500.0,0.00013698,2]
[407984445,1772969433167,-500.0,0.00013698,2]
[407984446,1772969433176,-504.84755744,0.00013698,2]
[407984447,1772969433186,-500.0,0.00013698,2]
[407984448,1772969433196,-502.85950902,0.00013698,2]
[407984449,1772969433206,-500.0,0.00013698,2]
[407984450,1772969433215,-500.0,0.00013698,2]
[407984451,1772969433224,-500.0,0.00013698,2]
[407984452,1772969433234,-500.0,0.00013698,2]
[407984453,1772969433243,-500.0,0.00013698,2]
[407984454,1772969433252,-500.0,0.00013698,2]
[407984455,1772969433262,-500.0,0.00013698,2]
[407984456,1772969433274,-500.0,0.00013698,2]
[407984457,1772969433283,-500.0,0.00013698,2]
[407984458,1772969433293,-500.0,0.00013698,2]
[407984459,1772969433302,-500.0,0.00013698,2]
[407984460,1772969433311,-500.0,0.00013698,2]
[407984461,1772969433321,-500.0,0.00013698,2]
[407984462,1772969433331,-500.0,0.00013698,2]
[407984463,1772969433339,-500.0,0.00013698,2]
[407984464,1772969433349,-386.52843539,0.00013698,2]
[407984465,1772969433360,-500.0,0.00013698,2]
[407984466,1772969433370,-500.0,0.00013698,2]
[407984467,1772969433382,-500.0,0.00013698,2]
[407984468,1772969433391,-500.0,0.00013698,2]
[407984469,1772969433400,-500.0,0.00013698,2]
[407984470,1772969433409,-500.0,0.00013698,2]
[407984471,1772969433418,-516.64002131,0.00013698,2]
[407984472,1772969433427,-500.0,0.00013698,2]
[407984473,1772969433441,-500.0,0.00013698,2]
[407984474,1772969433450,-500.0,0.00013698,2]
[407984475,1772969433459,-500.0,0.00013698,2]
[407984476,1772969433468,-141.03749323,0.00013698,2]
[407984477,1772969433614,-119.28774558,0.00013698,2]
[407984478,1772969433624,-500.0,0.00013698,2]
[407984479,1772969433633,-500.0,0.00013698,2]
[407984480,1772969433643,-500.0,0.00013698,2]
[407984481,1772969433652,-500.0,0.00013698,2]
[407984482,1772969433661,-500.0,0.00013698,2]
[407984483,1772969433671,-500.0,0.00013698,2]
[407984484,1772969433679,-500.0,0.00013698,2]
[407984485,1772969433688,-472.66012257,0.00013698,2]
[407984486,1772969433700,-27.33987743,0.00013698,2]
[407984487,1772969433709,-500.0,0.00013698,2]
[407984488,1772969433718,-500.0,0.00013698,2]
[407984489,1772969433727,-514.75306544,0.00013698,2]
[407984490,1772969433736,-500.0,0.00013698,2]
[407984491,1772969433745,-166.46476852,0.00013698,2]
[407984492,1772969433760,-333.53523148,0.00013698,2]
[407984493,1772969433769,-500.0,0.00013698,2]
[407984494,1772969433778,-500.0,0.00013698,2]
[407984495,1772969433787,-464.66053996,0.00013698,2]
[407984496,1772969433803,-35.33946004,0.00013698,2]
[407984497,1772969433813,-500.0,0.00013698,2]
[407984498,1772969433822,-500.0,0.00013698,2]
[407984499,1772969433831,-500.0,0.00013698,2]
[407984500,1772969433841,-500.0,0.00013698,2]
[407984501,1772969433851,-500.0,0.00013698,2]
[407984502,1772969433861,-500.0,0.00013698,2]
[407984503,1772969433871,-500.0,0.00013698,2]
[407984504,1772969433880,-166.03055173,0.00013698,2]
[407984505,1772969433892,-333.96944827,0.00013698,2]
[407984506,1772969433902,-500.0,0.00013698,2]
[407984507,1772969433911,-153.98591173,0.00013698,2]
[407984508,1772969433922,-383.99323395,0.00013698,2]
[407984509,1772969433931,-485.67247437,0.00013698,2]
[407984510,1772969433943,-14.32752563,0.00013698,2]
[407984511,1772969433953,-500.0,0.00013698,2]
[407984512,1772969433962,-449.07247447,0.00013698,2]
[407984513,1772969433973,-50.92752553,0.00013698,2]
[407984514,1772969433982,-500.0,0.00013698,2]
[407984515,1772969433991,-295.53413636,0.00013698,2]
[407984520,1772969437399,-204.46586364,0.00013698,2]
[407984521,1772969437410,-500.0,0.00013698,2]
[407984522,1772969437421,-500.0,0.00013698,2]
[407984524,1772969437433,-500.0,0.00013698,2]
[407984527,1772969437446,-500.0,0.00013698,2]
[407984528,1772969437458,-500.0,0.00013698,2]
[407984529,1772969437470,-500.0,0.00013698,2]
[407984530,1772969437481,-500.0,0.00013698,2]
[407984531,1772969437503,-500.0,0.00013698,2]
[407984532,1772969437516,-500.0,0.00013698,2]
[407984533,1772969437531,-500.0,0.00013698,2]
[407984534,1772969437544,-500.0,0.00013698,2]
[407984535,1772969437558,-500.0,0.00013698,2]
[407984536,1772969437572,-500.0,0.00013698,2]
[407984537,1772969437584,-500.0,0.00013698,2]
[407984538,1772969437595,-500.0,0.00013698,2]
[407984539,1772969437606,-500.0,0.00013698,2]
[407984540,1772969437617,-500.0,0.00013698,2]
[407984541,1772969437627,-500.0,0.00013698,2]
[407984542,1772969437642,-500.0,0.00013698,2]
[407984543,1772969437655,-500.0,0.00013698,2]
[407984544,1772969437668,-500.0,0.00013698,2]
[407984545,1772969437680,-500.0,0.00013698,2]
[407984546,1772969437693,-500.0,0.00013698,2]
[407984547,1772969437706,-500.0,0.00013698,2]
[407984548,1772969437717,-500.0,0.00013698,2]
[407984549,1772969437728,-500.0,0.00013698,2]
[407984550,1772969437740,-500.0,0.00013698,2]
[407984551,1772969437752,-500.0,0.00013698,2]
[407984552,1772969437764,-500.0,0.00013698,2]
[407984553,1772969437777,-500.0,0.00013698,2]
[407984554,1772969437789,-500.0,0.00013698,2]
[407984555,1772969437799,-500.0,0.00013698,2]
[407984556,1772969437810,-500.0,0.00013698,2]
[407984557,1772969437826,-500.0,0.00013698,2]
[407984558,1772969437838,-500.0,0.00013698,2]
[407984559,1772969437850,-500.0,0.00013698,2]
[407984560,1772969437861,-500.0,0.00013698,2]
[407984561,1772969437873,-500.0,0.00013698,2]
[407984562,1772969437884,-500.0,0.00013698,2]
[407984563,1772969437895,-500.0,0.00013698,2]
[407984564,1772969437907,-500.0,0.00013698,2]
[407984565,1772969437918,-500.0,0.00013698,2]
[407984566,1772969437929,-500.0,0.00013698,2]
[407984567,1772969437940,-500.0,0.00013698,2]
[407984568,1772969437952,-500.0,0.00013698,2]
[407984569,1772969437969,-500.0,0.00013698,2]
[407984570,1772969437981,-500.0,0.00013698,2]
[407984571,1772969437994,-500.0,0.00013698,2]
[407984572,1772969438012,-500.0,0.00013698,2]